fUSD/lending_fUSD_20250524
["ID","MTS","AMOUNT","RATE_DAILY","PERIOD"]
[362264787,1748128245940,-420.0,0.00019342,2]
[362264788,1748128245950,-420.0,0.00019342,2]
[362264789,1748128245960,-420.0,0.00019342,2]
[362264790,1748128245970,-420.0,0.00019342,2]
[362264791,1748128245980,-420.0,0.00019342,2]
[362264792,1748128245990,-420.0,0.00019342,2]
[362264793,1748128246000,-420.0,0.00019342,2]
[362264794,1748128246010,-3151.76,0.00019342,2]
[362264795,1748128246019,-555.74,0.00019342,2]
[362264796,1748128246028,-420.0,0.00019342,2]
[362264797,1748128246039,-1907.22,0.00019342,2]
[362264798,1748128246048,-420.0,0.00019342,2]
[362264799,1748128246058,-1270.47,0.00019342,2]
[362264800,1748128246069,-500.84,0.00019342,2]
[362264801,1748128246079,-420.0,0.00019342,2]
[362264802,1748128246089,-420.0,0.00019342,2]
[362264803,1748128246099,-564.31,0.00019342,2]
[362264804,1748128246109,-420.0,0.00019342,2]
[362264805,1748128246120,-420.0,0.00019342,2]
[362264806,1748128246129,-420.0,0.00019342,2]
[362264807,1748128246139,-1497.71,0.00019342,2]
[362264808,1748128246149,-822.31,0.00019342,2]
[362264809,1748128246159,-420.0,0.00019342,2]
[362264810,1748128246169,-2131.86,0.00019342,2]
[362264811,1748128246178,-420.0,0.00019342,2]
[362264812,1748128246188,-420.0,0.00019342,2]
[362264813,1748128246198,-1551.8,0.00019342,2]
[362264814,1748128246207,-420.0,0.00019342,2]
[362264815,1748128246217,-721.79,0.00019342,2]
[362264816,1748128246227,-420.0,0.00019342,2]
[362264817,1748128246237,-466.41,0.00019342,2]
[362264818,1748128246246,-1432.68209154,0.00019352,2]
[362264819,1748128246255,-420.0,0.00019369,2]
[362264820,1748128246265,-420.0,0.00019369,2]
[362264821,1748128246274,-420.0,0.00019369,2]
[362264822,1748128246284,-420.0,0.00019369,2]
[362264823,1748128246293,-1856.9,0.00019369,2]
[362264824,1748128246302,-420.0,0.00019369,2]
[362264825,1748128246312,-420.0,0.00019369,2]
[362264826,1748128246321,-441.86,0.00019369,2]
[362264827,1748128246331,-540.73113365,0.00019369,2]
[362264828,1748128246340,-420.0,0.00019369,2]
[362264829,1748128246349,-420.0,0.00019369,2]
[362264830,1748128246358,-420.0,0.00019369,2]
[362264831,1748128246369,-1098.4,0.00019369,2]
[362264832,1748128246378,-496.96,0.00019369,2]
[362264833,1748128246388,-985.24,0.00019369,2]
[362264834,1748128246398,-420.0,0.00019369,2]
[362264835,1748128246408,-420.0,0.00019369,2]
[362264836,1748128246417,-420.0,0.00019369,2]
[362264837,1748128246427,-418.6,0.00019369,2]
[362264838,1748128246436,-420.0,0.00019369,2]
[362264839,1748128246445,-420.0,0.00019369,2]
[362264840,1748128246455,-420.0,0.00019369,2]
[362264841,1748128246464,-3151.76,0.00019369,2]
[362264842,1748128246473,-555.74,0.00019369,2]
[362264843,1748128246484,-420.0,0.00019369,2]
[362264844,1748128246494,-1907.22,0.00019369,2]
[362264845,1748128246503,-420.0,0.00019369,2]
[362264846,1748128246514,-1270.47,0.00019369,2]
[362264847,1748128246523,-500.84,0.00019369,2]
[362264848,1748128246533,-420.0,0.00019369,2]
[362264849,1748128246543,-420.0,0.00019369,2]
[362264850,1748128246551,-564.31,0.00019369,2]
[362264851,1748128246561,-420.0,0.00019369,2]
[362264852,1748128246574,-420.0,0.00019369,2]
[362264853,1748128246585,-429.45783494,0.00019369,2]
[362264854,1748128246594,-1497.71,0.00019369,2]
[362264855,1748128246603,-822.31,0.00019369,2]
[362264856,1748128246612,-547.09,0.00019369,2]
[362264857,1748128246625,-2131.86,0.00019369,2]
[362264858,1748128246634,-420.0,0.00019369,2]
[362264859,1748128246643,-420.0,0.00019369,2]
[362264860,1748128246652,-1551.8,0.00019369,2]
[362264861,1748128246662,-420.0,0.00019369,2]
[362264862,1748128246672,-721.79,0.00019369,2]
[362264863,1748128246681,-466.41,0.00019369,2]
[362264864,1748128246691,-168.82523799,0.0001937,2]
[362264865,1748128246700,-2095.72707714,0.0001937,2]
[362264866,1748128246710,-515.84657799,0.00019373,2]
[362264867,1748128246719,-500.0,0.00019373,2]
[362264868,1748128246729,-500.0,0.00019373,2]
[362264869,1748128246738,-500.0,0.00019373,2]
[362264870,1748128246748,-500.0,0.00019373,2]
[362264871,1748128246757,-170.2,0.00019378,2]
[362264872,1748128246767,-325.5,0.00019378,2]
[362264873,1748128246777,-211.39245666,0.00019391,2]
[362264874,1748128246787,-420.0,0.00019397,2]
[362264875,1748128246797,-420.0,0.00019397,2]
[362264876,1748128246807,-420.0,0.00019397,2]
[362264877,1748128246817,-1856.9,0.00019397,2]
[362264878,1748128246827,-420.0,0.00019397,2]
[362264879,1748128246837,-420.0,0.00019397,2]
[362264880,1748128246847,-441.86,0.00019397,2]
[362264881,1748128246856,-420.0,0.00019397,2]
[362264882,1748128246868,-420.0,0.00019397,2]
[362264883,1748128246880,-1098.4,0.00019397,2]
[362264884,1748128246891,-985.24,0.00019397,2]
[362264885,1748128246901,-420.0,0.00019397,2]
[362264886,1748128246912,-420.0,0.00019397,2]
[362264887,1748128246923,-420.0,0.00019397,2]
[362264888,1748128246933,-420.0,0.00019397,2]
[362264889,1748128246943,-420.0,0.00019397,2]
[362264890,1748128246953,-420.0,0.00019397,2]
[362264891,1748128246963,-3151.76,0.00019397,2]
[362264892,1748128246973,-555.74,0.00019397,2]
[362264893,1748128246983,-420.0,0.00019397,2]
[362264894,1748128246993,-1907.22,0.00019397,2]
[362264895,1748128247003,-420.0,0.00019397,2]
[362264896,1748128247013,-1270.47,0.00019397,2]
[362264897,1748128247024,-500.84,0.00019397,2]
[362264898,1748128247034,-290.1,0.00019397,2]
[362264899,1748128247044,-420.0,0.00019397,2]
[362264900,1748128247054,-564.31,0.00019397,2]
[362264901,1748128247064,-420.0,0.00019397,2]
[362264902,1748128247074,-420.0,0.00019397,2]
[362264903,1748128247083,-1497.71,0.00019397,2]
[362264904,1748128247093,-822.31,0.00019397,2]
[362264905,1748128247103,-2131.86,0.00019397,2]
[362264906,1748128247113,-420.0,0.00019397,2]
[362264907,1748128247126,-420.0,0.00019397,2]
[362264908,1748128247136,-1551.8,0.00019397,2]
[362264909,1748128247146,-180.81669999,0.00019397,2]
[362264910,1748128247156,-721.79,0.00019397,2]
[362264911,1748128247166,-466.41,0.00019397,2]
[362264912,1748128247176,-162.91,0.000194,2]
[362264913,1748128247186,-170.2,0.000194,2]
[362264914,1748128247196,-162.91,0.000194,2]
[362264915,1748128247206,-170.2,0.000194,2]
[362264916,1748128247216,-420.0,0.00019424,2]
[362264917,1748128247226,-218.8,0.00019424,2]
[362264918,1748128247236,-177.62,0.00019424,2]
[362264919,1748128247247,-1856.9,0.00019424,2]
[362264920,1748128247256,-420.0,0.00019424,2]
[362264921,1748128247267,-420.0,0.00019424,2]
[362264922,1748128247277,-441.86,0.00019424,2]
[362264923,1748128247286,-420.0,0.00019424,2]
[362264924,1748128247296,-420.0,0.00019424,2]
[362264925,1748128247307,-1098.4,0.00019424,2]
[362264926,1748128247317,-985.24,0.00019424,2]
[362264927,1748128247327,-420.0,0.00019424,2]
[362264928,1748128247337,-420.0,0.00019424,2]
[362264929,1748128247347,-420.0,0.00019424,2]
[362264930,1748128247356,-242.12,0.00019424,2]
[362264931,1748128247366,-420.0,0.00019424,2]
[362264932,1748128247377,-420.0,0.00019424,2]
[362264933,1748128247386,-3151.76,0.00019424,2]
[362264934,1748128247396,-555.74,0.00019424,2]
[362264935,1748128247406,-330.66,0.00019424,2]
[362264936,1748128247416,-1907.22,0.00019424,2]
[362264937,1748128247426,-420.0,0.00019424,2]
[362264938,1748128247436,-1270.47,0.00019424,2]
[362264939,1748128247447,-500.84,0.00019424,2]
[362264940,1748128247457,-420.0,0.00019424,2]
[362264941,1748128247466,-564.31,0.00019424,2]
[362264942,1748128247476,-420.0,0.00019424,2]
[362264943,1748128247486,-420.0,0.00019424,2]
[362264944,1748128247495,-1497.71,0.00019424,2]
[362264945,1748128247505,-822.31,0.00019424,2]
[362264946,1748128247515,-2131.86,0.00019424,2]
[362264947,1748128247525,-420.0,0.00019424,2]
[362264948,1748128247535,-420.0,0.00019424,2]
[362264949,1748128247544,-1551.8,0.00019424,2]
[362264950,1748128247554,-721.79,0.00019424,2]
[362264951,1748128247564,-466.41,0.00019424,2]
[362264952,1748128247577,-1432.68209154,0.00019443,2]
[362264953,1748128247587,-228.49345991,0.00019446,2]
[362264954,1748128247597,-420.0,0.00019452,2]
[362264955,1748128247607,-1856.9,0.00019452,2]
[362264956,1748128247618,-420.0,0.00019452,2]
[362264957,1748128247628,-420.0,0.00019452,2]
[362264958,1748128247637,-441.86,0.00019452,2]
[362264959,1748128247647,-420.0,0.00019452,2]
[362264960,1748128247656,-340.34,0.00019452,2]
[362264961,1748128247666,-1098.4,0.00019452,2]
[362264962,1748128247677,-985.24,0.00019452,2]
[362264963,1748128247687,-420.0,0.00019452,2]
[362264964,1748128247697,-259.78,0.00019452,2]
[362264965,1748128247707,-420.0,0.00019452,2]
[362264966,1748128247718,-420.0,0.00019452,2]
[362264967,1748128247729,-420.0,0.00019452,2]
[362264968,1748128247740,-3151.76,0.00019452,2]
[362264969,1748128247750,-555.74,0.00019452,2]
[362264970,1748128247760,-1907.22,0.00019452,2]
[362264971,1748128247770,-420.0,0.00019452,2]
[362264972,1748128247781,-1270.47,0.00019452,2]
[362264973,1748128247791,-500.84,0.00019452,2]
[362264974,1748128247801,-420.0,0.00019452,2]
[362264975,1748128247811,-564.31,0.00019452,2]
[362264976,1748128247821,-420.0,0.00019452,2]
[362264977,1748128247830,-420.0,0.00019452,2]
[362264978,1748128247840,-1497.71,0.00019452,2]
[362264979,1748128247851,-822.31,0.00019452,2]
[362264980,1748128247861,-2131.86,0.00019452,2]
[362264981,1748128247872,-420.0,0.00019452,2]
[362264982,1748128247882,-420.0,0.00019452,2]
[362264983,1748128247892,-1551.8,0.00019452,2]
[362264984,1748128247902,-721.79,0.00019452,2]
[362264985,1748128247912,-466.41,0.00019452,2]
[362264986,1748128247923,-2095.72707714,0.00019458,2]
[362264987,1748128247938,-500.0,0.00019478,2]
[362264988,1748128247949,-500.0,0.00019478,2]
[362264989,1748128247960,-420.0,0.00019479,2]
[362264990,1748128247970,-1856.9,0.00019479,2]
[362264991,1748128247981,-420.0,0.00019479,2]
[362264992,1748128247991,-420.0,0.00019479,2]
[362264993,1748128248001,-441.86,0.00019479,2]
[362264994,1748128248010,-420.0,0.00019479,2]
[362264995,1748128248020,-1098.4,0.00019479,2]
[362264996,1748128248030,-985.24,0.00019479,2]
[362264997,1748128248040,-327.93,0.00019479,2]
[362264998,1748128248050,-420.0,0.00019479,2]
[362264999,1748128248060,-550.41,0.00019479,2]
[362265000,1748128248069,-420.0,0.00019479,2]
[362265001,1748128248079,-3151.76,0.00019479,2]
[362265002,1748128248089,-555.74,0.00019479,2]
[362265003,1748128248099,-1907.22,0.00019479,2]
[362265004,1748128248109,-420.0,0.00019479,2]
[362265005,1748128248119,-1270.47,0.00019479,2]
[362265006,1748128248130,-500.84,0.00019479,2]
[362265007,1748128248139,-420.0,0.00019479,2]
[362265008,1748128248149,-564.31,0.00019479,2]
[362265009,1748128248159,-420.0,0.00019479,2]
[362265010,1748128248168,-420.0,0.00019479,2]
[362265011,1748128248178,-1497.71,0.00019479,2]
[362265012,1748128248188,-822.31,0.00019479,2]
[362265013,1748128248198,-2131.86,0.00019479,2]
[362265014,1748128248207,-420.0,0.00019479,2]
[362265015,1748128248217,-420.0,0.00019479,2]
[362265016,1748128248227,-1551.8,0.00019479,2]
[362265017,1748128248237,-721.79,0.00019479,2]
[362265018,1748128248247,-466.41,0.00019479,2]
[362265019,1748128248256,-168.82523799,0.00019503,2]
[362265020,1748128248266,-239.84,0.00019506,2]
[362265021,1748128248275,-1856.9,0.00019506,2]
[362265022,1748128248285,-420.0,0.00019506,2]
[362265023,1748128248295,-420.0,0.00019506,2]
[362265024,1748128248304,-441.86,0.00019506,2]
[362265025,1748128248314,-420.0,0.00019506,2]
[362265026,1748128248323,-1098.4,0.00019506,2]
[362265027,1748128248333,-985.24,0.00019506,2]
[362265028,1748128248343,-420.0,0.00019506,2]
[362265029,1748128248352,-420.0,0.00019506,2]
[362265030,1748128248362,-3151.76,0.00019506,2]
[362265031,1748128248373,-555.74,0.00019506,2]
[362265032,1748128248383,-1907.22,0.00019506,2]
[362265033,1748128248393,-420.0,0.00019506,2]
[362265034,1748128248403,-1270.47,0.00019506,2]
[362265035,1748128248413,-500.84,0.00019506,2]
[362265036,1748128248422,-420.0,0.00019506,2]
[362265037,1748128248432,-564.31,0.00019506,2]
[362265038,1748128248442,-420.0,0.00019506,2]
[362265039,1748128248452,-420.0,0.00019506,2]
[362265040,1748128248461,-1497.71,0.00019506,2]
[362265041,1748128248471,-822.31,0.00019506,2]
[362265042,1748128248482,-2131.86,0.00019506,2]
[362265043,1748128248492,-420.0,0.00019506,2]
[362265044,1748128248502,-335.9,0.00019506,2]
[362265045,1748128248512,-1551.8,0.00019506,2]
[362265046,1748128248523,-721.79,0.00019506,2]
[362265047,1748128248532,-466.41,0.00019506,2]
[362265048,1748128248542,-196.0,0.00019519,2]
[362265049,1748128248552,-1856.9,0.00019534,2]
[362265050,1748128248562,-420.0,0.00019534,2]
[362265051,1748128248575,-420.0,0.00019534,2]
[362265052,1748128248584,-441.86,0.00019534,2]
[362265053,1748128248594,-420.0,0.00019534,2]
[362265054,1748128248604,-1098.4,0.00019534,2]
[362265055,1748128248615,-985.24,0.00019534,2]
[362265056,1748128248627,-420.0,0.00019534,2]
[362265057,1748128248637,-420.0,0.00019534,2]
[362265058,1748128248647,-3151.76,0.00019534,2]
[362265059,1748128248657,-555.74,0.00019534,2]
[362265060,1748128248667,-1907.22,0.00019534,2]
[362265061,1748128248677,-420.0,0.00019534,2]
[362265062,1748128248687,-1270.47,0.00019534,2]
[362265063,1748128248697,-500.84,0.00019534,2]
[362265064,1748128248706,-420.0,0.00019534,2]
[362265065,1748128248716,-564.31,0.00019534,2]
[362265066,1748128248726,-420.0,0.00019534,2]
[362265067,1748128248736,-420.0,0.00019534,2]
[362265068,1748128248746,-1497.71,0.00019534,2]
[362265069,1748128248755,-822.31,0.00019534,2]
[362265070,1748128248765,-2131.86,0.00019534,2]
[362265071,1748128248775,-420.0,0.00019534,2]
[362265072,1748128248785,-1551.8,0.00019534,2]
[362265073,1748128248795,-721.79,0.00019534,2]
[362265074,1748128248804,-466.41,0.00019534,2]
[362265075,1748128248815,-1432.68209154,0.00019535,2]
[362265076,1748128248825,-2095.72707714,0.00019547,2]
[362265077,1748128248835,-424.58205481,0.00019551,2]
[362265078,1748128248844,-150.0,0.0001956,2]
[362265079,1748128248854,-1856.9,0.00019561,2]
[362265080,1748128248864,-420.0,0.00019561,2]
[362265081,1748128248877,-420.0,0.00019561,2]
[362265082,1748128248886,-441.86,0.00019561,2]
[362265083,1748128248896,-420.0,0.00019561,2]
[362265084,1748128248906,-1098.4,0.00019561,2]
[362265085,1748128248916,-985.24,0.00019561,2]
[362265086,1748128248926,-420.0,0.00019561,2]
[362265087,1748128248936,-235.87,0.00019561,2]
[362265088,1748128248945,-3151.76,0.00019561,2]
[362265089,1748128248955,-555.74,0.00019561,2]
[362265090,1748128248965,-1907.22,0.00019561,2]
[362265091,1748128248975,-420.0,0.00019561,2]
[362265092,1748128248984,-1270.47,0.00019561,2]
[362265093,1748128248994,-500.84,0.00019561,2]
[362265094,1748128249004,-420.0,0.00019561,2]
[362265095,1748128249014,-564.31,0.00019561,2]
[362265096,1748128249025,-420.0,0.00019561,2]
[362265097,1748128249034,-420.0,0.00019561,2]
[362265098,1748128249044,-1497.71,0.00019561,2]
[362265099,1748128249054,-822.31,0.00019561,2]
[362265100,1748128249064,-2131.86,0.00019561,2]
[362265101,1748128249074,-420.0,0.00019561,2]
[362265102,1748128249084,-1551.8,0.00019561,2]
[362265103,1748128249094,-721.79,0.00019561,2]
[362265104,1748128249104,-466.41,0.00019561,2]
[362265105,1748128249114,-502.54862324,0.00019573,2]
[362265106,1748128249127,-449.42,0.00019578,2]
[362265107,1748128249137,-170.2,0.00019578,2]
[362265108,1748128249147,-1856.9,0.00019589,2]
[362265109,1748128249157,-420.0,0.00019589,2]
[362265110,1748128249168,-420.0,0.00019589,2]
[362265111,1748128249178,-441.86,0.00019589,2]
[362265112,1748128249187,-441.68,0.00019589,2]
[362265113,1748128249198,-1098.4,0.00019589,2]
[362265114,1748128249208,-985.24,0.00019589,2]
[362265115,1748128249218,-420.0,0.00019589,2]
[362265116,1748128249228,-3151.76,0.00019589,2]
[362265117,1748128249238,-555.74,0.00019589,2]
[362265118,1748128249249,-1907.22,0.00019589,2]
[362265119,1748128249259,-396.56,0.00019589,2]
[362265120,1748128249477,-1270.47,0.00019589,2]
[362265121,1748128249488,-500.84,0.00019589,2]
[362265122,1748128249498,-501.69,0.00019589,2]
[362265123,1748128249508,-564.31,0.00019589,2]
[362265124,1748128249518,-420.0,0.00019589,2]
[362265125,1748128249527,-420.0,0.00019589,2]
[362265126,1748128249537,-1497.71,0.00019589,2]
[362265127,1748128249547,-822.31,0.00019589,2]
[362265128,1748128249557,-2131.86,0.00019589,2]
[362265129,1748128249567,-420.0,0.00019589,2]
[362265130,1748128249579,-1551.8,0.00019589,2]
[362265131,1748128249589,-721.79,0.00019589,2]
[362265132,1748128249599,-466.41,0.00019589,2]
[362265133,1748128249608,-806.0,0.00019589,2]
[362265134,1748128249621,-803.72,0.00019589,2]
[362265135,1748128249632,-462.827106,0.00019599,2]
[362265136,1748128249642,-590.84,0.000196,2]
[362265137,1748128249653,-806.0,0.000196,2]
[362265138,1748128249663,-806.0,0.000196,2]
[362265139,1748128249673,-1612.0,0.000196,2]
[362265140,1748128249683,-1856.9,0.00019616,2]
[362265141,1748128249694,-420.0,0.00019616,2]
[362265142,1748128249704,-223.58,0.00019616,2]
[362265143,1748128249713,-441.86,0.00019616,2]
[362265144,1748128249724,-1098.4,0.00019616,2]
[362265145,1748128249734,-985.24,0.00019616,2]
[362265146,1748128249743,-420.0,0.00019616,2]
[362265147,1748128249753,-3151.76,0.00019616,2]
[362265148,1748128249763,-555.74,0.00019616,2]
[362265149,1748128249772,-1907.22,0.00019616,2]
[362265150,1748128249783,-1270.47,0.00019616,2]
[362265151,1748128249793,-500.84,0.00019616,2]
[362265152,1748128249803,-564.31,0.00019616,2]
[362265153,1748128249813,-336.74,0.00019616,2]
[362265154,1748128249822,-420.0,0.00019616,2]
[362265155,1748128249832,-1497.71,0.00019616,2]
[362265156,1748128249843,-822.31,0.00019616,2]
[362265157,1748128249853,-2131.86,0.00019616,2]
[362265158,1748128249863,-420.0,0.00019616,2]
[362265159,1748128249875,-1551.8,0.00019616,2]
[362265160,1748128249885,-721.79,0.00019616,2]
[362265161,1748128249895,-262.15,0.00019619,2]
[362265162,1748128249905,-1432.68209154,0.00019626,2]
[362265163,1748128249914,-168.82523799,0.00019635,2]
[362265164,1748128249925,-2095.72707714,0.00019635,2]
[362265165,1748128249935,-1856.9,0.00019643,2]
[362265166,1748128249945,-420.0,0.00019643,2]
[362265167,1748128249954,-441.86,0.00019643,2]
[362265168,1748128249964,-1098.4,0.00019643,2]
[362265169,1748128249975,-985.24,0.00019643,2]
[362265170,1748128249986,-420.0,0.00019643,2]
[362265171,1748128249996,-3151.76,0.00019643,2]
[362265172,1748128250007,-555.74,0.00019643,2]
[362265173,1748128250017,-1907.22,0.00019643,2]
[362265174,1748128250026,-1270.47,0.00019643,2]
[362265175,1748128250036,-500.84,0.00019643,2]
[362265176,1748128250046,-564.31,0.00019643,2]
[362265177,1748128250056,-420.0,0.00019643,2]
[362265178,1748128250065,-1497.71,0.00019643,2]
[362265179,1748128250075,-822.31,0.00019643,2]
[362265180,1748128250086,-2131.86,0.00019643,2]
[362265181,1748128250095,-420.0,0.00019643,2]
[362265182,1748128250106,-1551.8,0.00019643,2]
[362265183,1748128250117,-721.79,0.00019643,2]
[362265184,1748128250129,-1856.9,0.00019671,2]
[362265185,1748128250139,-420.0,0.00019671,2]
[362265186,1748128250149,-441.86,0.00019671,2]
[362265187,1748128250159,-1098.4,0.00019671,2]
[362265188,1748128250170,-985.24,0.00019671,2]
[362265189,1748128250179,-420.0,0.00019671,2]
[362265190,1748128250189,-3151.76,0.00019671,2]
[362265191,1748128250199,-555.74,0.00019671,2]
[362265192,1748128250209,-1907.22,0.00019671,2]
[362265193,1748128250219,-1270.47,0.00019671,2]
[362265194,1748128250229,-500.84,0.00019671,2]
[362265195,1748128250238,-564.31,0.00019671,2]
[362265196,1748128250248,-226.83,0.00019671,2]
[362265197,1748128250258,-1497.71,0.00019671,2]
[362265198,1748128250267,-822.31,0.00019671,2]
[362265199,1748128250277,-2131.86,0.00019671,2]
[362265200,1748128250287,-321.66,0.00019671,2]
[362265201,1748128250296,-1551.8,0.00019671,2]
[362265202,1748128250306,-721.79,0.00019671,2]
[362265203,1748128250316,-416.875,0.00019678,2]
[362265204,1748128250326,-4054.0,0.00019678,2]
[362265205,1748128250336,-154.0,0.00019678,2]
[362265206,1748128250345,-1856.9,0.00019698,2]
[362265207,1748128250355,-420.0,0.00019698,2]
[362265208,1748128250365,-441.86,0.00019698,2]
[362265209,1748128250377,-1098.4,0.00019698,2]
[362265210,1748128250387,-985.24,0.00019698,2]
[362265211,1748128250397,-420.0,0.00019698,2]
[362265212,1748128250407,-3151.76,0.00019698,2]
[362265213,1748128250416,-555.74,0.00019698,2]
[362265214,1748128250426,-1907.22,0.00019698,2]
[362265215,1748128250436,-1270.47,0.00019698,2]
[362265216,1748128250446,-500.84,0.00019698,2]
[362265217,1748128250456,-564.31,0.00019698,2]
[362265218,1748128250465,-1497.71,0.00019698,2]
[362265219,1748128250475,-822.31,0.00019698,2]
[362265220,1748128250485,-2131.86,0.00019698,2]
[362265221,1748128250495,-1551.8,0.00019698,2]
[362265222,1748128250506,-721.79,0.00019698,2]
[362265223,1748128250516,-693.3919763,0.00019714,2]
[362265224,1748128250526,-1432.68209154,0.00019717,2]
[362265225,1748128250535,-2095.72707714,0.00019723,2]
[362265226,1748128250545,-1856.9,0.00019726,2]
[362265227,1748128250555,-420.0,0.00019726,2]
[362265228,1748128250565,-441.86,0.00019726,2]
[362265229,1748128250577,-1098.4,0.00019726,2]
[362265230,1748128250587,-985.24,0.00019726,2]
[362265231,1748128250597,-420.0,0.00019726,2]
[362265232,1748128250606,-3151.76,0.00019726,2]
[362265233,1748128250616,-555.74,0.00019726,2]
[362265234,1748128250629,-1907.22,0.00019726,2]
[362265235,1748128250638,-1270.47,0.00019726,2]
[362265236,1748128250648,-500.84,0.00019726,2]
[362265237,1748128250659,-564.31,0.00019726,2]
[362265238,1748128250668,-1497.71,0.00019726,2]
[362265239,1748128250678,-822.31,0.00019726,2]
[362265240,1748128250688,-2131.86,0.00019726,2]
[362265241,1748128250698,-1551.8,0.00019726,2]
[362265242,1748128250708,-721.79,0.00019726,2]
[362265243,1748128250718,-340.32,0.00019726,2]
[362265244,1748128250727,-170.2,0.00019726,2]
[362265245,1748128250737,-339.83,0.00019726,2]
[362265246,1748128250746,-978.847,0.00019748,2]
[362265247,1748128250756,-1309.0,0.00019748,2]
[362265248,1748128250766,-630.0,0.00019748,2]
[362265249,1748128250775,-800.0,0.00019748,2]
[362265250,1748128250785,-1856.9,0.00019753,2]
[362265251,1748128250795,-420.0,0.00019753,2]
[362265252,1748128250804,-441.86,0.00019753,2]
[362265253,1748128250814,-1098.4,0.00019753,2]
[362265254,1748128250823,-985.24,0.00019753,2]
[362265255,1748128250833,-420.0,0.00019753,2]
[362265256,1748128250843,-3151.76,0.00019753,2]
[362265257,1748128250853,-555.74,0.00019753,2]
[362265258,1748128250863,-1907.22,0.00019753,2]
[362265259,1748128250874,-1270.47,0.00019753,2]
[362265260,1748128250884,-500.84,0.00019753,2]
[362265261,1748128250894,-564.31,0.00019753,2]
[362265262,1748128250904,-1497.71,0.00019753,2]
[362265263,1748128250914,-822.31,0.00019753,2]
[362265264,1748128250925,-2131.86,0.00019753,2]
[362265265,1748128250935,-1551.8,0.00019753,2]
[362265266,1748128250945,-721.79,0.00019753,2]
[362265267,1748128250955,-168.82523799,0.00019768,2]
[362265268,1748128250964,-500.0,0.00019779,2]
[362265269,1748128250973,-500.0,0.00019779,2]
[362265270,1748128250983,-1856.9,0.0001978,2]
[362265271,1748128250993,-262.79,0.0001978,2]
[362265272,1748128251002,-441.86,0.0001978,2]
[362265273,1748128251012,-1098.4,0.0001978,2]
[362265274,1748128251022,-985.24,0.0001978,2]
[362265275,1748128251032,-515.93,0.0001978,2]
[362265276,1748128251042,-3151.76,0.0001978,2]
[362265277,1748128251051,-555.74,0.0001978,2]
[362265278,1748128251062,-1907.22,0.0001978,2]
[362265279,1748128251071,-1270.47,0.0001978,2]
[362265280,1748128251081,-500.84,0.0001978,2]
[362265281,1748128251091,-564.31,0.0001978,2]
[362265282,1748128251100,-1497.71,0.0001978,2]
[362265283,1748128251110,-822.31,0.0001978,2]
[362265284,1748128251121,-2131.86,0.0001978,2]
[362265285,1748128251131,-1551.8,0.0001978,2]
[362265286,1748128251141,-721.79,0.0001978,2]